[Event "Titled Tuesday Blitz March 14 Late 2023"]
[White "Popov, Mikhail"]
[Black "Kornyukov, Alexey"]
[WhiteFideId "4146182"]
[BlackFideId "4150457"]
[WhiteElo "2270"]
[BlackElo "2352"]
[Result "1-0"]
[Round "03"]
[TimeControl "180+1"]
[Date "2023.03.14"]
[WhiteClock "0:00:17"]
[BlackClock "0:00:02"]

1. c4 {[%clk 0:03:00]}  e6 {[%clk 0:02:58]} 2. g3 {[%clk 0:02:59]}  d5 {[%clk 0:02:58]} 3. Bg2 {[%clk 0:02:58]}  d4 {[%clk 0:02:58]} 4. Nf3 {[%clk 0:02:52]}  c5 {[%clk 0:02:58]} 5. O-O {[%clk 0:02:51]}  Nc6 {[%clk 0:02:58]} 6. e3 {[%clk 0:02:51]}  Nf6 {[%clk 0:02:46]} 7. exd4 {[%clk 0:02:47]}  cxd4 {[%clk 0:02:46]} 8. d3 {[%clk 0:02:45]}  Be7 {[%clk 0:02:43]} 9. a3 {[%clk 0:02:41]}  a5 {[%clk 0:02:42]} 10. Re1 {[%clk 0:02:39]}  O-O {[%clk 0:02:42]} 11. Ne5 {[%clk 0:02:39]}  Qc7 {[%clk 0:02:34]} 12. Bf4 {[%clk 0:02:29]}  Bd6 {[%clk 0:02:34]} 13. Qe2 {[%clk 0:02:17]}  Nd7 {[%clk 0:02:08]} 14. Nxc6 {[%clk 0:02:03]}  bxc6 {[%clk 0:02:06]} 15. Bxd6 {[%clk 0:02:02]}  Qxd6 {[%clk 0:02:06]} 16. Nd2 {[%clk 0:02:03]}  Rb8 {[%clk 0:01:59]} 17. Ne4 {[%clk 0:02:02]}  Qc7 {[%clk 0:01:59]} 18. c5 {[%clk 0:01:35]}  Ba6 {[%clk 0:01:49]} 19. Rac1 {[%clk 0:01:33]}  Rb3 {[%clk 0:01:47]} 20. Nd6 {[%clk 0:00:47]}  Bxd3 {[%clk 0:01:27]} 21. Qf3 {[%clk 0:00:39]}  Nb8 {[%clk 0:00:32]} 22. Qf4 {[%clk 0:00:28]}  Rxb2 {[%clk 0:00:07]} 23. Qxd4 {[%clk 0:00:28]}  Rb3 {[%clk 0:00:08]} 24. Re3 {[%clk 0:00:24]}  e5 {[%clk 0:00:08]} 25. Qxe5 {[%clk 0:00:22]}  Nd7 {[%clk 0:00:06]} 26. Qd4 {[%clk 0:00:22]}  Rxa3 {[%clk 0:00:05]} 27. Rxd3 {[%clk 0:00:22]}  Rxd3 {[%clk 0:00:04]} 28. Qxd3 {[%clk 0:00:23]}  Rb8 {[%clk 0:00:04]} 29. Qc4 {[%clk 0:00:21]}  Ne5 {[%clk 0:00:03]} 30. Qe4 {[%clk 0:00:21]}  f6 {[%clk 0:00:03]} 31. f4 {[%clk 0:00:20]}  Ng4 {[%clk 0:00:02]} 32. Qe6+ {[%clk 0:00:19]}  Kh8 {[%clk 0:00:02]} 33. Qxg4 {[%clk 0:00:17]} 1-0


[Site "https://www.chess.com"]

[Event "Titled Tuesday Blitz March 14 Late 2023"]
[White "Salgado Lopez, Ivan"]
[Black "Guo, Josh"]
[WhiteFideId "2257327"]
[BlackFideId "2682427"]
[WhiteElo "2571"]
[BlackElo "2326"]
[Result "1-0"]
[Round "03"]
[TimeControl "180+1"]
[Date "2023.03.14"]
[WhiteClock "0:01:38"]
[BlackClock "0:00:08"]

1. e4 {[%clk 0:03:00]}  c5 {[%clk 0:02:58]} 2. Nf3 {[%clk 0:03:00]}  d6 {[%clk 0:02:58]} 3. Bb5+ {[%clk 0:03:00]}  Bd7 {[%clk 0:02:58]} 4. Bxd7+ {[%clk 0:03:00]}  Qxd7 {[%clk 0:02:59]} 5. O-O {[%clk 0:03:00]}  Nf6 {[%clk 0:02:55]} 6. Re1 {[%clk 0:03:00]}  Nc6 {[%clk 0:02:55]} 7. c3 {[%clk 0:03:00]}  e6 {[%clk 0:02:55]} 8. d4 {[%clk 0:03:00]}  cxd4 {[%clk 0:02:56]} 9. cxd4 {[%clk 0:03:00]}  d5 {[%clk 0:02:56]} 10. e5 {[%clk 0:03:00]}  Ne4 {[%clk 0:02:56]} 11. a3 {[%clk 0:03:00]}  Be7 {[%clk 0:02:55]} 12. Nbd2 {[%clk 0:03:01]}  Nxd2 {[%clk 0:02:53]} 13. Bxd2 {[%clk 0:03:02]}  O-O {[%clk 0:02:53]} 14. Rc1 {[%clk 0:03:00]}  Rac8 {[%clk 0:02:53]} 15. Rc3 {[%clk 0:02:59]}  f6 {[%clk 0:02:25]} 16. exf6 {[%clk 0:02:54]}  Bxf6 {[%clk 0:02:26]} 17. Bf4 {[%clk 0:02:49]}  Rfe8 {[%clk 0:02:17]} 18. Rce3 {[%clk 0:02:45]}  Na5 {[%clk 0:02:06]} 19. h4 {[%clk 0:02:39]}  Nc4 {[%clk 0:02:04]} 20. R3e2 {[%clk 0:02:38]}  b5 {[%clk 0:01:17]} 21. h5 {[%clk 0:02:30]}  h6 {[%clk 0:01:10]} 22. Qd3 {[%clk 0:02:24]}  a6 {[%clk 0:01:05]} 23. g3 {[%clk 0:02:14]}  Qf7 {[%clk 0:01:04]} 24. Qg6 {[%clk 0:02:13]}  Rc6 {[%clk 0:00:35]} 25. Qg4 {[%clk 0:02:09]}  a5 {[%clk 0:00:28]} 26. Kg2 {[%clk 0:02:07]}  a4 {[%clk 0:00:24]} 27. Bxh6 {[%clk 0:01:55]}  Kh7 {[%clk 0:00:20]} 28. Bf4 {[%clk 0:01:53]}  Kg8 {[%clk 0:00:16]} 29. h6 {[%clk 0:01:52]}  g6 {[%clk 0:00:16]} 30. Bg5 {[%clk 0:01:47]}  Kh7 {[%clk 0:00:11]} 31. Bxf6 {[%clk 0:01:40]}  Qxf6 {[%clk 0:00:12]} 32. Ng5+ {[%clk 0:01:40]}  Kxh6 {[%clk 0:00:10]} 33. Nxe6 {[%clk 0:01:39]}  Kh7 {[%clk 0:00:07]} 34. Ng5+ {[%clk 0:01:38]}  Kg8 {[%clk 0:00:08]} 1-0


[Site "https://www.chess.com"]

[Event "Titled Tuesday Blitz March 14 Late 2023"]
[White "Shubin, Kirill"]
[Black "Matinian, Nikita"]
[WhiteFideId "34119962"]
[BlackFideId "24129100"]
[WhiteElo "2407"]
[BlackElo "2422"]
[Result "1-0"]
[Round "03"]
[TimeControl "180+1"]
[Date "2023.03.14"]
[WhiteClock "0:01:33"]
[BlackClock "0:00:30"]

1. e4 {[%clk 0:03:00]}  c5 {[%clk 0:02:59]} 2. Nf3 {[%clk 0:03:00]}  e6 {[%clk 0:03:00]} 3. g3 {[%clk 0:03:00]}  Nc6 {[%clk 0:02:58]} 4. Bg2 {[%clk 0:03:00]}  h5 {[%clk 0:02:57]} 5. h4 {[%clk 0:02:55]}  Nf6 {[%clk 0:02:53]} 6. Qe2 {[%clk 0:02:54]}  b6 {[%clk 0:02:46]} 7. O-O {[%clk 0:02:53]}  Bb7 {[%clk 0:02:46]} 8. Rd1 {[%clk 0:02:52]}  Ng4 {[%clk 0:02:36]} 9. c3 {[%clk 0:02:50]}  d5 {[%clk 0:02:24]} 10. d3 {[%clk 0:02:44]}  Be7 {[%clk 0:02:13]} 11. Nbd2 {[%clk 0:02:33]}  Qc7 {[%clk 0:02:04]} 12. Nf1 {[%clk 0:02:28]}  O-O-O {[%clk 0:01:59]} 13. Ne3 {[%clk 0:02:18]}  g6 {[%clk 0:01:25]} 14. Nxg4 {[%clk 0:02:14]}  hxg4 {[%clk 0:01:25]} 15. Ng5 {[%clk 0:02:14]}  Ne5 {[%clk 0:01:07]} 16. Bf4 {[%clk 0:02:13]}  Bd6 {[%clk 0:00:56]} 17. exd5 {[%clk 0:02:01]}  Nf3+ {[%clk 0:00:50]} 18. Nxf3 {[%clk 0:01:51]}  Bxf4 {[%clk 0:00:49]} 19. Ne1 {[%clk 0:01:42]}  Bxg3 {[%clk 0:00:33]} 20. fxg3 {[%clk 0:01:40]}  Qxg3 {[%clk 0:00:33]} 21. Qf2 {[%clk 0:01:40]}  Qc7 {[%clk 0:00:30]} 22. dxe6 {[%clk 0:01:37]}  g3 {[%clk 0:00:30]} 23. Qxf7 {[%clk 0:01:33]} 1-0


[Site "https://www.chess.com"]

[Event "Titled Tuesday Blitz March 14 Late 2023"]
[White "Sjugirov, Sanan"]
[Black "Fernandez Garcia, Gumersindo"]
[WhiteFideId "4189302"]
[BlackFideId "24516740"]
[WhiteElo "2569"]
[BlackElo "2093"]
[Result "1-0"]
[Round "03"]
[TimeControl "180+1"]
[Date "2023.03.14"]
[WhiteClock "0:01:14"]
[BlackClock "0:00:07"]

1. d4 {[%clk 0:02:57]}  Nf6 {[%clk 0:02:55]} 2. c4 {[%clk 0:02:57]}  g6 {[%clk 0:02:55]} 3. Nc3 {[%clk 0:02:57]}  Bg7 {[%clk 0:02:55]} 4. e4 {[%clk 0:02:58]}  d6 {[%clk 0:02:55]} 5. Nf3 {[%clk 0:02:58]}  O-O {[%clk 0:02:56]} 6. Be2 {[%clk 0:02:59]}  Nbd7 {[%clk 0:02:55]} 7. O-O {[%clk 0:02:59]}  e5 {[%clk 0:02:55]} 8. Be3 {[%clk 0:02:58]}  Re8 {[%clk 0:02:55]} 9. d5 {[%clk 0:02:57]}  Nh5 {[%clk 0:02:54]} 10. Re1 {[%clk 0:02:54]}  Bf8 {[%clk 0:02:51]} 11. b4 {[%clk 0:02:52]}  a5 {[%clk 0:02:49]} 12. bxa5 {[%clk 0:02:50]}  Rxa5 {[%clk 0:02:47]} 13. a4 {[%clk 0:02:50]}  Ng7 {[%clk 0:02:41]} 14. Nd2 {[%clk 0:02:50]}  f5 {[%clk 0:02:33]} 15. f3 {[%clk 0:02:50]}  Be7 {[%clk 0:02:25]} 16. Nb3 {[%clk 0:02:50]}  Ra8 {[%clk 0:02:25]} 17. a5 {[%clk 0:02:49]}  Bg5 {[%clk 0:02:19]} 18. Bf2 {[%clk 0:02:48]}  Bh4 {[%clk 0:02:06]} 19. g3 {[%clk 0:02:48]}  Be7 {[%clk 0:02:06]} 20. c5 {[%clk 0:02:45]}  Nxc5 {[%clk 0:02:01]} 21. Nxc5 {[%clk 0:02:45]}  dxc5 {[%clk 0:02:02]} 22. Qc2 {[%clk 0:02:05]}  Bd6 {[%clk 0:01:50]} 23. Nb5 {[%clk 0:02:05]}  Qe7 {[%clk 0:01:47]} 24. Rec1 {[%clk 0:02:04]}  b6 {[%clk 0:01:33]} 25. axb6 {[%clk 0:01:57]}  Rxa1 {[%clk 0:01:33]} 26. Rxa1 {[%clk 0:01:58]}  cxb6 {[%clk 0:01:32]} 27. Ra7 {[%clk 0:01:54]}  Qf8 {[%clk 0:01:30]} 28. Qa4 {[%clk 0:01:46]}  fxe4 {[%clk 0:01:12]} 29. Nxd6 {[%clk 0:01:43]}  Qxd6 {[%clk 0:00:43]} 30. Rxg7+ {[%clk 0:01:42]}  Kxg7 {[%clk 0:00:43]} 31. Qxe8 {[%clk 0:01:42]}  Bd7 {[%clk 0:00:24]} 32. Qd8 {[%clk 0:01:42]}  Qxd5 {[%clk 0:00:20]} 33. fxe4 {[%clk 0:01:42]}  Qd2 {[%clk 0:00:19]} 34. Bf1 {[%clk 0:01:36]}  Qd1 {[%clk 0:00:11]} 35. Qe7+ {[%clk 0:01:35]}  Kg8 {[%clk 0:00:11]} 36. Qd8+ {[%clk 0:01:28]}  Kf7 {[%clk 0:00:11]} 37. Be3 {[%clk 0:01:22]}  c4 {[%clk 0:00:09]} 38. Bxb6 {[%clk 0:01:13]}  c3 {[%clk 0:00:07]} 39. Bc5 {[%clk 0:01:14]} 1-0


[Site "https://www.chess.com"]

[Event "Titled Tuesday Blitz March 14 Late 2023"]
[White "Stelmaszyk, Nico"]
[Black "Manukian, Artak"]
[WhiteFideId "16200462"]
[BlackFideId "13301373"]
[WhiteElo "2255"]
[BlackElo "2130"]
[Result "1-0"]
[Round "03"]
[TimeControl "180+1"]
[Date "2023.03.14"]
[WhiteClock "0:01:05"]
[BlackClock "0:00:03"]

1. e4 {[%clk 0:02:55]}  c6 {[%clk 0:03:00]} 2. d4 {[%clk 0:02:55]}  d5 {[%clk 0:03:01]} 3. exd5 {[%clk 0:02:55]}  cxd5 {[%clk 0:03:01]} 4. c4 {[%clk 0:02:56]}  Nf6 {[%clk 0:03:01]} 5. Nc3 {[%clk 0:02:57]}  g6 {[%clk 0:03:01]} 6. cxd5 {[%clk 0:02:52]}  Bg7 {[%clk 0:03:02]} 7. Bc4 {[%clk 0:02:52]}  O-O {[%clk 0:03:03]} 8. Nge2 {[%clk 0:02:53]}  Nbd7 {[%clk 0:03:04]} 9. Nf4 {[%clk 0:02:53]}  Nb6 {[%clk 0:03:04]} 10. Bb3 {[%clk 0:02:53]}  Bf5 {[%clk 0:03:00]} 11. O-O {[%clk 0:02:53]}  Ne4 {[%clk 0:02:34]} 12. Re1 {[%clk 0:02:50]}  Nxc3 {[%clk 0:02:32]} 13. bxc3 {[%clk 0:02:50]}  Rc8 {[%clk 0:02:31]} 14. Qf3 {[%clk 0:02:47]}  h5 {[%clk 0:02:03]} 15. h3 {[%clk 0:02:43]}  Qd7 {[%clk 0:02:00]} 16. Ba3 {[%clk 0:02:40]}  Bf6 {[%clk 0:01:57]} 17. Re3 {[%clk 0:02:39]}  Nc4 {[%clk 0:01:53]} 18. Bxc4 {[%clk 0:02:38]}  Rxc4 {[%clk 0:01:54]} 19. Rae1 {[%clk 0:02:37]}  Re8 {[%clk 0:01:46]} 20. Qe2 {[%clk 0:02:33]}  b5 {[%clk 0:01:36]} 21. Bxe7 {[%clk 0:02:27]}  Bxe7 {[%clk 0:01:27]} 22. Rxe7 {[%clk 0:02:27]}  Rxe7 {[%clk 0:01:28]} 23. Qxe7 {[%clk 0:02:28]}  Qxe7 {[%clk 0:01:28]} 24. Rxe7 {[%clk 0:02:29]}  Rxc3 {[%clk 0:01:27]} 25. Rxa7 {[%clk 0:02:27]}  Rc1+ {[%clk 0:01:22]} 26. Kh2 {[%clk 0:02:27]}  Rd1 {[%clk 0:01:23]} 27. Ne2 {[%clk 0:02:10]}  Rd2 {[%clk 0:00:57]} 28. Ng3 {[%clk 0:02:04]}  Bb1 {[%clk 0:00:51]} 29. d6 {[%clk 0:01:57]}  Rxd4 {[%clk 0:00:47]} 30. d7 {[%clk 0:01:56]}  Kg7 {[%clk 0:00:46]} 31. a3 {[%clk 0:01:56]}  Bd3 {[%clk 0:00:43]} 32. f3 {[%clk 0:01:49]}  Kf6 {[%clk 0:00:43]} 33. Ne4+ {[%clk 0:01:48]}  Bxe4 {[%clk 0:00:42]} 34. fxe4 {[%clk 0:01:49]}  Ke6 {[%clk 0:00:42]} 35. Rb7 {[%clk 0:01:48]}  Rxd7 {[%clk 0:00:41]} 36. Rxb5 {[%clk 0:01:48]}  Rd4 {[%clk 0:00:34]} 37. Rb4 {[%clk 0:01:47]}  Rd3 {[%clk 0:00:24]} 38. a4 {[%clk 0:01:47]}  Ra3 {[%clk 0:00:23]} 39. Kg1 {[%clk 0:01:46]}  Ra2 {[%clk 0:00:23]} 40. Kh2 {[%clk 0:01:43]}  h4 {[%clk 0:00:22]} 41. e5 {[%clk 0:01:42]}  Kxe5 {[%clk 0:00:20]} 42. Rxh4 {[%clk 0:01:42]}  f5 {[%clk 0:00:21]} 43. Rb4 {[%clk 0:01:41]}  g5 {[%clk 0:00:19]} 44. Rb5+ {[%clk 0:01:41]}  Ke4 {[%clk 0:00:18]} 45. a5 {[%clk 0:01:42]}  Kf4 {[%clk 0:00:15]} 46. Rc5 {[%clk 0:01:37]}  g4 {[%clk 0:00:15]} 47. Rc4+ {[%clk 0:01:33]}  Kg5 {[%clk 0:00:14]} 48. hxg4 {[%clk 0:01:33]}  fxg4 {[%clk 0:00:13]} 49. Rc5+ {[%clk 0:01:33]}  Kf4 {[%clk 0:00:13]} 50. Rb5 {[%clk 0:01:33]}  Ra3 {[%clk 0:00:11]} 51. Rb4+ {[%clk 0:01:31]}  Kf5 {[%clk 0:00:10]} 52. Rb5+ {[%clk 0:01:29]}  Kf4 {[%clk 0:00:11]} 53. g3+ {[%clk 0:01:26]}  Kf3 {[%clk 0:00:09]} 54. Rf5+ {[%clk 0:01:26]}  Ke3 {[%clk 0:00:08]} 55. Rg5 {[%clk 0:01:25]}  Kf3 {[%clk 0:00:08]} 56. Rf5+ {[%clk 0:01:26]}  Ke3 {[%clk 0:00:09]} 57. Rf4 {[%clk 0:01:26]}  Rxa5 {[%clk 0:00:08]} 58. Rxg4 {[%clk 0:01:27]}  Rh5+ {[%clk 0:00:06]} 59. Kg2 {[%clk 0:01:26]}  Rh8 {[%clk 0:00:06]} 60. Ra4 {[%clk 0:01:26]}  Rf8 {[%clk 0:00:05]} 61. Kh3 {[%clk 0:01:24]}  Rh8+ {[%clk 0:00:06]} 62. Rh4 {[%clk 0:01:22]}  Rg8 {[%clk 0:00:06]} 63. Rh5 {[%clk 0:01:19]}  Kf3 {[%clk 0:00:06]} 64. Rf5+ {[%clk 0:01:17]}  Ke4 {[%clk 0:00:06]} 65. Ra5 {[%clk 0:01:07]}  Rh8+ {[%clk 0:00:05]} 66. Kg4 {[%clk 0:01:07]}  Rg8+ {[%clk 0:00:06]} 67. Rg5 {[%clk 0:01:07]}  Rf8 {[%clk 0:00:06]} 68. Rg6 {[%clk 0:01:05]}  Ke5 {[%clk 0:00:06]} 69. Ra6 {[%clk 0:01:05]}  Rg8+ {[%clk 0:00:06]} 70. Kh4 {[%clk 0:01:05]}  Rh8+ {[%clk 0:00:06]} 71. Kg5 {[%clk 0:01:06]}  Rg8+ {[%clk 0:00:06]} 72. Rg6 {[%clk 0:01:06]}  Rf8 {[%clk 0:00:06]} 73. g4 {[%clk 0:01:07]}  Rf1 {[%clk 0:00:05]} 74. Ra6 {[%clk 0:01:05]}  Rg1 {[%clk 0:00:06]} 75. Kh5 {[%clk 0:01:05]}  Rh1+ {[%clk 0:00:04]} 76. Kg6 {[%clk 0:01:05]}  Rg1 {[%clk 0:00:05]} 77. g5 {[%clk 0:01:06]}  Rg2 {[%clk 0:00:05]} 78. Kh6 {[%clk 0:01:05]}  Rh2+ {[%clk 0:00:05]} 79. Kg7 {[%clk 0:01:05]}  Rg2 {[%clk 0:00:05]} 80. g6 {[%clk 0:01:06]}  Kf5 {[%clk 0:00:05]} 81. Ra5+ {[%clk 0:01:06]}  Ke6 {[%clk 0:00:05]} 82. Ra6+ {[%clk 0:01:05]}  Ke7 {[%clk 0:00:05]} 83. Kh7 {[%clk 0:01:05]}  Rh2+ {[%clk 0:00:04]} 84. Kg8 {[%clk 0:01:06]}  Rg2 {[%clk 0:00:05]} 85. g7 {[%clk 0:01:06]}  Rg1 {[%clk 0:00:03]} 86. Ra4 {[%clk 0:01:07]}  Kf6 {[%clk 0:00:03]} 87. Rf4+ {[%clk 0:01:05]}  Ke6 {[%clk 0:00:03]} 88. Kf8 {[%clk 0:01:05]} 1-0


[Site "https://www.chess.com"]

[Event "Titled Tuesday Blitz March 14 Late 2023"]
[White "Szente Varga, Fruzsina"]
[Black "Tarnowska, Aleksandra"]
[WhiteFideId "712264"]
[BlackFideId "1180967"]
[WhiteElo "1994"]
[BlackElo "1776"]
[Result "1-0"]
[Round "03"]
[TimeControl "180+1"]
[Date "2023.03.14"]
[WhiteClock "0:02:03"]
[BlackClock "0:00:01"]

1. e4 {[%clk 0:03:00]}  c5 {[%clk 0:02:59]} 2. Nf3 {[%clk 0:02:59]}  e6 {[%clk 0:02:59]} 3. b3 {[%clk 0:02:59]}  Nc6 {[%clk 0:02:55]} 4. Bb2 {[%clk 0:03:00]}  d5 {[%clk 0:02:50]} 5. exd5 {[%clk 0:03:00]}  exd5 {[%clk 0:02:49]} 6. Bb5 {[%clk 0:03:00]}  Nf6 {[%clk 0:02:48]} 7. Qe2+ {[%clk 0:02:54]}  Qe7 {[%clk 0:02:48]} 8. Bxf6 {[%clk 0:02:49]}  gxf6 {[%clk 0:02:41]} 9. Nc3 {[%clk 0:02:48]}  Qxe2+ {[%clk 0:02:22]} 10. Kxe2 {[%clk 0:02:48]}  Be6 {[%clk 0:02:20]} 11. Rhe1 {[%clk 0:02:43]}  a6 {[%clk 0:02:14]} 12. Bxc6+ {[%clk 0:02:43]}  bxc6 {[%clk 0:02:15]} 13. d4 {[%clk 0:02:43]}  O-O-O {[%clk 0:02:13]} 14. Na4 {[%clk 0:02:38]}  cxd4 {[%clk 0:01:28]} 15. Nxd4 {[%clk 0:02:39]}  Kc7 {[%clk 0:01:24]} 16. Kf1 {[%clk 0:02:38]}  Re8 {[%clk 0:00:55]} 17. Rac1 {[%clk 0:02:30]}  Ba3 {[%clk 0:00:44]} 18. Rcd1 {[%clk 0:02:25]}  h5 {[%clk 0:00:41]} 19. c3 {[%clk 0:02:20]}  Bd6 {[%clk 0:00:36]} 20. b4 {[%clk 0:02:19]}  h4 {[%clk 0:00:34]} 21. h3 {[%clk 0:02:19]}  Rhg8 {[%clk 0:00:32]} 22. a3 {[%clk 0:02:11]}  Rg6 {[%clk 0:00:21]} 23. f3 {[%clk 0:02:07]}  Bg3 {[%clk 0:00:19]} 24. Re2 {[%clk 0:02:08]}  f5 {[%clk 0:00:12]} 25. Nc5 {[%clk 0:02:07]}  Bd7 {[%clk 0:00:10]} 26. Nxa6+ {[%clk 0:02:06]}  Kc8 {[%clk 0:00:05]} 27. Nc5 {[%clk 0:02:06]}  Rxe2 {[%clk 0:00:04]} 28. Nxe2 {[%clk 0:02:06]}  f4 {[%clk 0:00:04]} 29. a4 {[%clk 0:02:04]}  Bf5 {[%clk 0:00:04]} 30. a5 {[%clk 0:02:03]}  Bc2 {[%clk 0:00:04]} 31. Rd2 {[%clk 0:02:02]}  Bf5 {[%clk 0:00:03]} 32. Nd4 {[%clk 0:02:02]}  Be6 {[%clk 0:00:02]} 33. Nxc6 {[%clk 0:02:02]}  Rg8 {[%clk 0:00:02]} 34. Ne7+ {[%clk 0:02:02]}  Kc7 {[%clk 0:00:01]} 35. Nxg8 {[%clk 0:02:03]} 1-0


[Site "https://www.chess.com"]

[Event "Titled Tuesday Blitz March 14 Late 2023"]
[White "Tanenbaum, Zachary"]
[Black "Svane, Frederik"]
[WhiteFideId "2060850"]
[BlackFideId "12923044"]
[WhiteElo "2175"]
[BlackElo "2502"]
[Result "1/2-1/2"]
[Round "03"]
[TimeControl "180+1"]
[Date "2023.03.14"]
[WhiteClock "0:00:04"]
[BlackClock "0:00:18"]

1. e4 {[%clk 0:03:00]}  c5 {[%clk 0:03:00]} 2. Nf3 {[%clk 0:03:00]}  e6 {[%clk 0:03:01]} 3. d4 {[%clk 0:03:00]}  cxd4 {[%clk 0:03:02]} 4. Nxd4 {[%clk 0:03:01]}  Nc6 {[%clk 0:03:02]} 5. Nc3 {[%clk 0:03:00]}  Qc7 {[%clk 0:03:02]} 6. g3 {[%clk 0:03:00]}  Nf6 {[%clk 0:03:02]} 7. Ndb5 {[%clk 0:02:59]}  Qb8 {[%clk 0:02:59]} 8. Bf4 {[%clk 0:02:58]}  e5 {[%clk 0:02:59]} 9. Bg5 {[%clk 0:02:58]}  a6 {[%clk 0:02:59]} 10. Na3 {[%clk 0:02:57]}  Bb4 {[%clk 0:02:46]} 11. Bxf6 {[%clk 0:02:44]}  gxf6 {[%clk 0:02:46]} 12. Nc4 {[%clk 0:02:21]}  b5 {[%clk 0:02:44]} 13. Ne3 {[%clk 0:02:20]}  Ne7 {[%clk 0:02:45]} 14. Qf3 {[%clk 0:01:39]}  Qc7 {[%clk 0:02:45]} 15. Ng4 {[%clk 0:01:39]}  Bxc3+ {[%clk 0:02:20]} 16. bxc3 {[%clk 0:01:38]}  Ng8 {[%clk 0:02:01]} 17. Bg2 {[%clk 0:01:36]}  d5 {[%clk 0:01:50]} 18. O-O {[%clk 0:01:29]}  Bxg4 {[%clk 0:01:45]} 19. Qxg4 {[%clk 0:01:30]}  Ne7 {[%clk 0:01:43]} 20. exd5 {[%clk 0:01:05]}  Qd6 {[%clk 0:01:43]} 21. a4 {[%clk 0:00:57]}  bxa4 {[%clk 0:01:25]} 22. Qxa4+ {[%clk 0:00:56]}  Kf8 {[%clk 0:01:25]} 23. Qb4 {[%clk 0:00:48]}  Rd8 {[%clk 0:01:21]} 24. Qxd6 {[%clk 0:00:48]}  Rxd6 {[%clk 0:01:22]} 25. c4 {[%clk 0:00:49]}  Kg7 {[%clk 0:01:11]} 26. c5 {[%clk 0:00:49]}  Rxd5 {[%clk 0:01:12]} 27. Bxd5 {[%clk 0:00:49]}  Nxd5 {[%clk 0:01:13]} 28. Rxa6 {[%clk 0:00:44]}  Rc8 {[%clk 0:01:12]} 29. Ra5 {[%clk 0:00:34]}  Nc3 {[%clk 0:01:09]} 30. Re1 {[%clk 0:00:30]}  Kg6 {[%clk 0:01:09]} 31. Re3 {[%clk 0:00:29]}  Nd5 {[%clk 0:01:09]} 32. Rd3 {[%clk 0:00:27]}  Nb4 {[%clk 0:01:09]} 33. Rd6 {[%clk 0:00:27]}  Nxc2 {[%clk 0:01:04]} 34. c6 {[%clk 0:00:24]}  Nd4 {[%clk 0:01:03]} 35. Rc5 {[%clk 0:00:21]}  Rc7 {[%clk 0:00:59]} 36. Rxe5 {[%clk 0:00:20]}  Rxc6 {[%clk 0:00:55]} 37. Rxc6 {[%clk 0:00:20]}  Nxc6 {[%clk 0:00:56]} 38. Re4 {[%clk 0:00:19]}  h5 {[%clk 0:00:54]} 39. f4 {[%clk 0:00:18]}  Nd8 {[%clk 0:00:51]} 40. Kf2 {[%clk 0:00:17]}  Ne6 {[%clk 0:00:51]} 41. Kf3 {[%clk 0:00:17]}  f5 {[%clk 0:00:50]} 42. Re5 {[%clk 0:00:17]}  Kf6 {[%clk 0:00:50]} 43. Ra5 {[%clk 0:00:17]}  Nd4+ {[%clk 0:00:50]} 44. Ke3 {[%clk 0:00:17]}  Ne6 {[%clk 0:00:50]} 45. Ra6 {[%clk 0:00:16]}  Kg6 {[%clk 0:00:50]} 46. Ra8 {[%clk 0:00:16]}  Kg7 {[%clk 0:00:49]} 47. h3 {[%clk 0:00:15]}  Kh7 {[%clk 0:00:47]} 48. Ra7 {[%clk 0:00:14]}  Kg7 {[%clk 0:00:47]} 49. Ra5 {[%clk 0:00:14]}  Kf6 {[%clk 0:00:47]} 50. Rd5 {[%clk 0:00:13]}  Ng7 {[%clk 0:00:44]} 51. Kd4 {[%clk 0:00:11]}  Ne6+ {[%clk 0:00:44]} 52. Kc4 {[%clk 0:00:12]}  h4 {[%clk 0:00:43]} 53. g4 {[%clk 0:00:08]}  fxg4 {[%clk 0:00:42]} 54. hxg4 {[%clk 0:00:09]}  h3 {[%clk 0:00:42]} 55. Rh5 {[%clk 0:00:08]}  h2 {[%clk 0:00:39]} 56. Rxh2 {[%clk 0:00:07]}  Nxf4 {[%clk 0:00:39]} 57. Kd4 {[%clk 0:00:05]}  Kg5 {[%clk 0:00:39]} 58. Rh7 {[%clk 0:00:04]}  Ne6+ {[%clk 0:00:29]} 59. Ke5 {[%clk 0:00:03]}  Kxg4 {[%clk 0:00:28]} 60. Rxf7 {[%clk 0:00:03]}  Ng5 {[%clk 0:00:28]} 61. Rg7 {[%clk 0:00:03]}  Kh4 {[%clk 0:00:28]} 62. Kf5 {[%clk 0:00:02]}  Nh3 {[%clk 0:00:27]} 63. Rg8 {[%clk 0:00:02]}  Nf2 {[%clk 0:00:27]} 64. Kf4 {[%clk 0:00:02]}  Nh3+ {[%clk 0:00:27]} 65. Kf3 {[%clk 0:00:02]}  Ng5+ {[%clk 0:00:28]} 66. Kf4 {[%clk 0:00:02]}  Nh3+ {[%clk 0:00:28]} 67. Ke4 {[%clk 0:00:03]}  Ng5+ {[%clk 0:00:28]} 68. Kf5 {[%clk 0:00:03]}  Nh3 {[%clk 0:00:28]} 69. Rg4+ {[%clk 0:00:03]}  Kh5 {[%clk 0:00:28]} 70. Rg2 {[%clk 0:00:03]}  Kh4 {[%clk 0:00:28]} 71. Ra2 {[%clk 0:00:02]}  Kg3 {[%clk 0:00:28]} 72. Ra3+ {[%clk 0:00:02]}  Kh4 {[%clk 0:00:28]} 73. Rb3 {[%clk 0:00:02]}  Nf2 {[%clk 0:00:24]} 74. Ra3 {[%clk 0:00:01]}  Nh3 {[%clk 0:00:24]} 75. Rf3 {[%clk 0:00:02]}  Ng5 {[%clk 0:00:17]} 76. Rf4+ {[%clk 0:00:02]}  Kh5 {[%clk 0:00:18]} 77. Rf1 {[%clk 0:00:03]}  Kh4 {[%clk 0:00:17]} 78. Rg1 {[%clk 0:00:03]}  Nh3 {[%clk 0:00:17]} 79. Rg4+ {[%clk 0:00:04]}  Kh5 {[%clk 0:00:18]} 80. Rg8 {[%clk 0:00:04]}  Kh4 {[%clk 0:00:18]} 81. Rg7 {[%clk 0:00:04]}  Nf2 {[%clk 0:00:18]} 82. Rg2 {[%clk 0:00:05]}  Nh3 {[%clk 0:00:18]} 83. Rg4+ {[%clk 0:00:04]} 1/2-1/2


[Site "https://www.chess.com"]